bitfinex-derivatives/quotes_SOLF0:USTF0_20250524
["timestamp","ask_amount","ask_price","bid_price","bid_amount"]
[1748061391462,113.56,175.37,175.27,113.56]
[1748061391862,5.7015,175.35,175.3,5.7026]
[1748061392267,0.03987178,175.34,175.31,0.03949873]
[1748061392459,5.74147178,175.34,175.31,0.03949873]
[1748061393557,0.03987178,175.34,175.31,5.74189873]
[1748061395175,0.03987178,175.34,175.32,5.7022]
[1748061395361,0.03987178,175.34,175.31,0.03949873]
[1748061395766,0.03987178,175.34,175.33,5.7019]
[1748061396760,0.03987178,175.34,175.32,5.7022]
[1748061397665,0.03987178,175.34,175.33,5.7019]
[1748061400267,1.893,175.43,175.32,2.0147]
[1748061400268,113.54,175.43,175.32,2.0147]
[1748061400473,5.6993,175.41,175.32,3.943]
[1748061401364,5.6993,175.41,175.38,5.7002]
[1748061401766,5.74302803,175.41,175.38,5.7002]
[1748061402875,5.6997,175.4,175.37,5.7005]
[1748061403971,5.74312803,175.41,175.38,5.7003]
[1748061404172,0.04372803,175.41,175.35,113.55845869]
[1748061405676,0.04372803,175.41,175.36,1.8813]
[1748061405873,0.04372803,175.41,175.4,5.6996]
[1748061410675,0.04372803,175.41,175.39,0.0407806]
[1748061411167,5.74332803,175.41,175.39,0.0407806]
[1748061411374,0.04372803,175.41,175.39,0.0407806]
[1748061412579,0.04372803,175.41,175.4,5.6996]
[1748061417082,0.04372803,175.41,175.39,5.7405806]
[1748061417778,0.04372803,175.41,175.4,5.6996]
[1748061420886,0.04372803,175.41,175.39,5.7406806]
[1748061421798,0.04372803,175.41,175.4,5.6996]
[1748061426996,2.803e-05,175.41,175.4,5.6996]
[1748061431904,115.3013,175.54,175.48,5.6968]
[1748061432204,115.3013,175.54,175.45,113.44]
[1748061432404,115.3013,175.54,175.44,113.44]
[1748061432803,0.04208966,175.5,175.47,0.04074466]
[1748061433002,0.04208966,175.5,175.47,5.73804466]
[1748061433195,0.04208966,175.5,175.47,0.04074466]
[1748061433710,0.04208966,175.5,175.48,5.6968]
[1748061433899,0.04208966,175.5,175.47,0.04074466]
[1748061434302,0.04208966,175.5,175.48,5.6968]
[1748061434801,0.04208966,175.5,175.49,5.6967]
[1748061437998,0.04208966,175.5,175.47,0.04074466]
[1748061438505,0.04208966,175.5,175.47,5.73784466]
[1748061439103,5.697,175.49,175.47,0.04074466]
[1748061439699,5.697,175.48,175.47,0.04074466]
[1748061451305,7.5538,175.49,175.47,0.04074466]
[1748061451505,1.857,175.49,175.47,0.04074466]
[1748061451707,0.04208966,175.5,175.47,0.04074466]
[1748061452002,0.04208966,175.5,175.47,5.73784466]
[1748061452614,5.73848966,175.5,175.47,5.73784466]
[1748061452813,5.73848966,175.5,175.47,0.04074466]
[1748061453717,5.73848966,175.5,175.47,5.73784466]
[1748061453910,5.6968,175.49,175.47,0.04074466]
[1748061455416,5.697,175.48,175.47,0.04074466]
[1748061460526,5.6968,175.49,175.47,0.04074466]
[1748061462425,5.697,175.48,175.47,0.04074466]
[1748061467227,119.097,175.48,175.47,0.04074466]
[1748061484940,5.6984,175.44,175.41,5.6992]
[1748061485141,113.4,175.48,175.42,5.6989]
[1748061485441,5.698,175.46,175.42,5.6989]
[1748061485839,113.4,175.48,175.42,5.6989]
[1748061486040,0.04306146,175.47,175.43,0.0404477]
[1748061486236,5.698,175.45,175.43,0.0404477]
[1748061489639,5.6983,175.44,175.43,0.0404477]
[1748061490544,5.6981,175.45,175.43,0.0404477]
[1748061494244,0.04306146,175.47,175.43,0.0404477]
[1748061495339,0.04306146,175.47,175.43,2.0033477]
[1748061495547,0.04306146,175.47,175.46,5.6977]
[1748061497448,0.04306146,175.47,175.45,5.6979]
[1748061497649,5.74066146,175.47,175.43,0.0404477]
[1748061497853,2.94690168,175.46,175.43,0.0404477]
[1748061498352,5.6983,175.45,175.43,0.0404477]
[1748061499449,8.64470168,175.46,175.43,5.7390477]
[1748061499750,5.6978,175.46,175.43,5.7390477]
[1748061506860,5.74046146,175.47,175.43,5.7390477]
[1748061507260,0.04306146,175.47,175.46,5.6977]
[1748061512764,113.38,175.54,175.45,1.9466]
[1748061512957,14.18410992,175.55,175.45,6.55091415]
[1748061513461,14.18410992,175.58,175.55,5.6947]
[1748061513858,14.22682664,175.58,175.55,5.73783555]
[1748061514560,14.22682664,175.58,175.57,5.6941]
[1748061514960,11.13852664,175.58,175.57,5.6941]
[1748061515266,17.73013741,175.62,175.61,5.6928]
[1748061517262,5.6912,175.66,175.61,5.6928]
[1748061517463,5.6916,175.65,175.61,5.6928]
[1748061517653,115.2394,175.69,175.6,5.72987209]
[1748061518166,115.2394,175.69,175.6,0.03677209]
[1748061518461,4.60431415,175.66,175.6,0.03677209]
[1748061518670,113.32,175.74,175.6,4.64108624]
[1748061518868,113.32,175.74,175.65,0.03954072]
[1748061520170,5.6899,175.71,175.65,5.73104072]
[1748061520768,113.32,175.74,175.65,5.73104072]
[1748061521366,113.32,175.74,175.65,0.03954072]
[1748061521867,5.6903,175.69,175.65,0.03954072]
[1748061522867,5.6907,175.68,175.65,0.03954072]
[1748061523960,5.6909,175.67,175.65,0.03954072]
[1748061524569,113.32,175.74,175.65,0.03954072]
[1748061524760,5.6908,175.68,175.65,0.03954072]
[1748061528270,5.6909,175.67,175.65,0.03954072]
[1748061530666,113.32,175.74,175.65,0.03954072]
[1748061530667,5.6912,175.66,175.65,0.03954072]
[1748061537281,5.6909,175.67,175.65,0.03954072]
[1748061537481,1.9218,175.72,175.65,0.03954072]
[1748061537779,5.6906,175.68,175.65,0.03954072]
[1748061538284,5.6906,175.68,175.65,5.73094072]
[1748061538488,5.6903,175.69,175.65,5.73094072]
[1748061539188,5.6903,175.69,175.66,5.6911]
[1748061539374,5.6898,175.71,175.65,0.03954072]
[1748061539578,113.22,175.74,175.65,0.03954072]
[1748061540080,113.22,175.74,175.65,113.25954072]
[1748061540584,113.22,175.74,175.65,0.03954072]
[1748061540982,5.6903,175.69,175.66,5.6912]
[1748061541383,113.22,175.74,175.65,0.03954072]
[1748061541981,5.6898,175.71,175.67,5.6908]
[1748061542181,5.6898,175.71,175.67,5.73213627]
[1748061542385,5.6898,175.71,175.68,5.6905]
[1748061543380,5.6898,175.71,175.67,5.73213627]
[1748061543878,4.60431415,175.71,175.67,0.04133627]
[1748061544082,2.0464,175.7,175.62,5.6924]
[1748061544286,115.8864,175.7,175.62,5.6924]
[1748061544475,1.916,175.69,175.63,5.6919]
[1748061544983,5.6914,175.66,175.63,5.6919]
[1748061545191,5.6914,175.66,175.64,0.04275204]
[1748061548093,4.60431415,175.71,175.64,0.04275204]
[1748061548094,535.0,175.88,175.65,113.82]
[1748061548281,8.69821415,175.81,175.65,4.60431415]
[1748061548482,8.69821415,175.81,175.66,221.96]
[1748061548686,5.6877,175.77,175.72,5.689]
[1748061548984,5.6877,175.77,175.67,113.82]
[1748061549181,5.6877,175.77,175.73,5.6889]
[1748061549388,119.5074,175.78,175.73,5.6889]
[1748061549588,113.82,175.78,175.74,0.04203693]
[1748061551795,1.875,175.8,175.74,0.04203693]
[1748061552492,1.875,175.8,175.75,5.6882]
[1748061552692,1.875,175.8,175.74,0.04203693]
[1748061553896,5.687,175.79,175.75,5.688]
[1748061555492,1.875,175.8,175.74,0.04203693]
[1748061556491,5.6876,175.78,175.74,0.04203693]
[1748061557396,5.6877,175.77,175.74,0.04203693]
[1748061559290,5.688,175.76,175.74,0.04203693]
[1748061560101,5.6877,175.77,175.74,0.04203693]
[1748061560902,5.6881,175.76,175.74,0.04203693]
[1748061561200,1.875,175.8,175.74,0.04203693]
[1748061561501,5.6877,175.77,175.74,0.04203693]
[1748061561696,1.875,175.8,175.74,0.04203693]
[1748061562200,5.6871,175.79,175.75,5.6882]
[1748061562604,5.6871,175.79,175.74,0.04203693]
[1748061563206,5.6871,175.79,175.75,5.6882]
[1748061568610,5.6874,175.78,175.74,5.73053693]
[1748061568818,6.47931415,175.8,175.74,0.04203693]
[1748061569410,5.688,175.76,175.74,0.04203693]
[1748061569607,118.38431415,175.77,175.64,121.12360281]
[1748061569809,4.60431415,175.74,175.64,121.12360281]
[1748061570007,4.60431415,175.74,175.68,5.6904]
[1748061570208,6.60191415,175.74,175.68,5.6904]
[1748061570419,5.6897,175.71,175.68,5.6904]
[1748061570720,5.72585723,175.71,175.68,5.72754907]
[1748061571612,5.72585723,175.71,175.68,0.03714907]
[1748061571821,5.69,175.7,175.68,0.03714907]
[1748061573213,5.6902,175.69,175.68,0.03714907]
[1748061573918,5.69,175.7,175.68,0.03714907]
[1748061574712,0.03615723,175.71,175.68,0.03714907]
[1748061575215,0.03615723,175.71,175.68,5.72754907]
[1748061575517,5.72595723,175.71,175.68,5.72754907]
[1748061575820,5.72595723,175.71,175.68,0.03714907]
[1748061576519,5.6899,175.7,175.68,0.03714907]
[1748061576715,0.03615723,175.71,175.68,0.03714907]
[1748061578619,5.6901,175.7,175.68,0.03714907]
[1748061580317,5.72585723,175.71,175.68,0.03714907]
[1748061580723,5.72585723,175.71,175.68,5.72764907]
[1748061581124,5.72585723,175.71,175.68,0.03714907]
[1748061581513,0.03615723,175.71,175.68,0.03714907]
[1748061581716,0.03615723,175.71,175.7,5.6899]
[1748061582524,0.03615723,175.71,175.69,5.6901]
[1748061582822,0.03615723,175.71,175.68,0.03714907]
[1748061584624,0.03615723,175.71,175.7,5.6899]
[1748061591121,25.36545048,175.86,175.69,2.0254]
[1748061591324,4.60431415,175.83,175.69,2.0254]
[1748061591627,5.6872,175.79,175.75,5.688]
[1748061592124,5.6872,175.79,175.75,5.72974382]
[1748061592824,115.36,175.8,175.76,5.6879]
[1748061593222,5.687,175.79,175.76,5.6879]
[1748061593424,115.34,175.84,175.75,0.04174382]
[1748061593725,115.34,175.84,175.78,0.03746801]
[1748061594121,5.6862,175.82,175.79,5.6868]
[1748061594326,115.34,175.84,175.78,0.03746801]
[1748061594621,115.34,175.83,175.78,0.03746801]
[1748061594926,115.34,175.83,175.8,5.6865]
[1748061595118,115.34,175.83,175.78,0.03746801]
[1748061595316,5.6863,175.82,175.79,5.6867]
[1748061595929,5.6863,175.82,175.78,5.72466801]
[1748061596223,115.34,175.83,175.78,0.03746801]
[1748061596528,119.92497815,175.83,175.78,0.03746801]
[1748061596832,5.687,175.79,175.78,0.03746801]
[1748061598530,121.007,175.79,175.78,0.03746801]
[1748061600731,5.6894,175.72,175.66,120.65880281]
[1748061600917,5.6894,175.72,175.66,5.33880281]
[1748061601119,115.32,175.74,175.66,11.02990281]
[1748061601630,0.03991236,175.72,175.68,0.03966732]
[1748061601932,5.6896,175.71,175.68,0.03966732]
[1748061602131,0.03991236,175.72,175.68,0.03966732]
[1748061603635,5.6902,175.69,175.68,0.03966732]
[1748061605934,119.90497815,175.7,175.6,115.32]
[1748061606129,4.58497815,175.67,175.6,115.32]
[1748061606335,4.58497815,175.67,175.57,606.68]
[1748061606831,4.58497815,175.67,175.57,115.1]
[1748061607032,0.04379019,175.64,175.6,0.04120638]
[1748061607234,0.04379019,175.64,175.6,5.73410638]
[1748061607435,0.04379019,175.64,175.6,0.04120638]
[1748061608945,0.04379019,175.64,175.63,5.6922]
[1748061614140,0.04379019,175.64,175.6,0.04120638]
[1748061614330,5.6925,175.63,175.6,0.04120638]
[1748061614537,115.14,175.63,175.6,0.04120638]
[1748061615041,5.6928,175.61,175.6,0.04120638]
[1748061620842,124.577,175.63,175.6,0.04120638]
[1748061621045,115.16,175.63,175.6,0.04120638]
[1748061621433,115.16,175.63,175.62,5.6925]
[1748061622050,115.16,175.63,175.61,5.6928]
[1748061622241,0.04379019,175.64,175.61,5.6928]
[1748061625448,5.73569019,175.64,175.61,5.6928]
[1748061625649,0.04379019,175.64,175.6,5.73430638]
[1748061625851,0.04379019,175.64,175.6,0.04120638]
[1748061626044,5.6924,175.63,175.6,0.04120638]
[1748061626349,0.04379019,175.64,175.6,0.04120638]
[1748061626551,5.6899,175.71,175.66,5.691]
[1748061626744,4.59018138,175.75,175.62,4.0483]
[1748061627047,4.59018138,175.75,175.65,5.6914]
[1748061627548,5.6902,175.7,175.68,0.04383172]
[1748061627748,115.18,175.7,175.68,0.04383172]
[1748061628149,5.6902,175.69,175.68,0.04383172]
[1748061634860,5.691,175.67,175.56,1.8692]
[1748061635062,119.77251928,175.7,175.57,115.16]
[1748061635457,5.6915,175.66,175.61,5.6926]
[1748061635659,120.8515,175.66,175.61,5.6926]
[1748061635960,0.04092927,175.65,175.62,0.0369424]
[1748061637067,5.73242927,175.65,175.62,0.0369424]
[1748061638567,5.6919,175.64,175.62,0.0369424]
[1748061639368,5.6922,175.63,175.62,0.0369424]
[1748061642173,5.6922,175.63,175.54,2.0484]
[1748061642471,4.59251928,175.64,175.5,5.747]
[1748061642673,115.16,175.66,175.52,4.59251928]
[1748061642873,5.6918,175.65,175.52,4.59251928]
[1748061643074,115.16,175.66,175.52,4.59251928]
[1748061643276,0.0364939,175.61,175.58,0.03968018]
[1748061643573,0.0364939,175.61,175.6,5.6931]
[1748061644776,0.0364939,175.61,175.58,0.03968018]
[1748061645670,5.7294939,175.61,175.58,0.03968018]
[1748061646577,5.6933,175.6,175.58,0.03968018]
[1748061649878,5.6935,175.59,175.58,0.03968018]
[1748061650569,5.6932,175.6,175.58,0.03968018]
[1748061654174,5.7293939,175.61,175.58,5.73328018]
[1748061654375,0.0364939,175.61,175.58,0.03968018]
[1748061654768,0.0364939,175.61,175.6,5.6931]
[1748061657581,0.0364939,175.61,175.59,5.6934]
[1748061659780,0.0364939,175.61,175.58,0.03968018]
[1748061661281,5.6935,175.59,175.58,0.03968018]
[1748061664285,5.6933,175.6,175.58,0.03968018]
[1748061664885,115.7764939,175.61,175.58,5.73348018]
[1748061665292,115.7764939,175.61,175.58,0.03968018]
[1748061665472,5.6934,175.6,175.58,0.03968018]
[1748061667785,5.6935,175.59,175.58,0.03968018]
[1748061683496,10.28571928,175.6,175.58,0.03968018]
[1748061683705,4.59251928,175.6,175.58,0.03968018]
[1748061685601,5.6935,175.59,175.58,0.03968018]
[1748061687904,115.7764939,175.61,175.58,0.03968018]
[1748061688504,5.6932,175.6,175.58,0.03968018]
[1748061690809,5.6935,175.59,175.58,0.03968018]
[1748061700320,5.6932,175.6,175.58,0.03968018]
[1748061700714,115.7764939,175.61,175.58,0.03968018]
[1748061700918,5.6935,175.59,175.58,0.03968018]
[1748061703221,5.6935,175.59,175.58,8.018e-05]
[1748061703418,4.59821104,175.59,175.5,3.8767]
[1748061703722,115.7764939,175.61,175.53,5.6954]
[1748061703723,4.59921593,175.6,175.53,5.6954]
[1748061704325,0.03658568,175.58,175.55,0.03723789]
[1748061704520,113.96,175.57,175.55,0.03723789]
[1748061705018,0.03658568,175.58,175.55,0.03723789]
[1748061706428,5.73038568,175.58,175.55,0.03723789]
[1748061707322,5.73038568,175.58,175.55,5.73193789]
[1748061707719,0.03658568,175.58,175.55,0.03723789]
[1748061709429,0.03658568,175.58,175.56,5.6942]
[1748061711724,0.03658568,175.58,175.57,5.6941]
[1748061712030,0.03658568,175.58,175.55,0.03723789]
[1748061713623,0.03658568,175.58,175.56,5.6942]
[1748061714326,0.03658568,175.58,175.55,0.03723789]
[1748061714630,4.60012881,175.57,175.55,0.03723789]
[1748061714830,113.96,175.56,175.55,0.03723789]
[1748061715427,119.6544,175.56,175.55,0.03723789]
[1748061724243,113.96,175.56,175.55,0.03723789]
[1748061724441,5.73058568,175.58,175.55,0.03723789]
[1748061724941,5.6941,175.57,175.55,0.03723789]
[1748061725143,0.03658568,175.58,175.55,0.03723789]
[1748061726042,5.6941,175.57,175.55,0.03723789]
[1748061726943,5.6944,175.56,175.55,0.03723789]
[1748061729053,5.6942,175.57,175.55,0.03723789]
[1748061730446,5.73048568,175.58,175.55,5.73193789]
[1748061730639,0.03658568,175.58,175.55,0.03723789]
[1748061731234,5.73048568,175.58,175.55,0.03723789]
[1748061734454,5.73048568,175.58,175.55,5.73193789]
[1748061734845,5.73048568,175.58,175.55,0.03723789]
[1748061736152,5.6941,175.57,175.55,0.03723789]
[1748061737151,0.03658568,175.58,175.55,0.03723789]
[1748061738549,0.03658568,175.58,175.57,5.6941]
[1748061739253,120.0119,175.64,175.6,5.6929]
[1748061739647,120.0119,175.64,175.56,114.32]
[1748061739840,114.32,175.64,175.56,114.32]
[1748061740053,0.04224584,175.62,175.58,0.0372091]
[1748061741054,0.04224584,175.62,175.61,5.6928]
[1748061741254,13.99595048,175.69,175.61,114.32]
[1748061741648,19.68625048,175.69,175.65,5.6914]
[1748061742049,13.99595048,175.69,175.61,114.32]
[1748061742247,0.03827885,175.67,175.64,5.6918]
[1748061743150,0.03827885,175.67,175.65,5.6915]
[1748061743856,0.03827885,175.67,175.66,5.6912]
[1748061746256,119.9687,175.74,175.7,5.6898]
[1748061746658,114.28,175.74,175.65,222.46]
[1748061747166,0.03926532,175.71,175.68,0.04381364]
[1748061749163,0.03926532,175.71,175.7,5.6899]
[1748061749564,0.03926532,175.71,175.68,0.04381364]
[1748061751165,0.03926532,175.71,175.7,5.6899]
[1748061759466,0.03926532,175.71,175.68,5.73411364]
[1748061760660,5.72896532,175.71,175.68,5.73411364]
[1748061762373,0.03926532,175.71,175.68,0.04381364]
[1748061763571,5.72896532,175.71,175.68,5.73431364]
[1748061764368,0.03926532,175.71,175.68,5.73431364]
[1748061764670,0.03926532,175.71,175.69,5.69]
[1748061765872,0.03926532,175.71,175.68,5.73431364]
[1748061767572,0.03926532,175.71,175.68,0.04381364]
[1748061768666,0.03926532,175.71,175.7,5.6899]
[1748061776072,0.03926532,175.71,175.68,0.04381364]
[1748061776578,0.03926532,175.71,175.68,5.73411364]
[1748061777175,5.6902,175.69,175.68,0.04381364]
[1748061777384,0.03926532,175.71,175.68,0.04381364]
[1748061777675,5.6901,175.7,175.68,0.04381364]
[1748061777875,0.03926532,175.71,175.68,0.04381364]
[1748061778181,0.03926532,175.71,175.54,513.96144933]
[1748061778182,119.19939413,175.71,175.61,120.2528]
[1748061778383,4.60012881,175.68,175.55,7.01781698]
[1748061778580,116.4214,175.67,175.57,119.89880281]
[1748061778979,4.60012881,175.65,175.57,5.33880281]
[1748061779175,0.04178615,175.63,175.59,0.04053678]
[1748061779484,5.6934,175.6,175.59,0.04053678]
[1748061781380,5.6942,175.57,175.52,5.6955]
[1748061781580,5.6942,175.57,175.51,114.56]
[1748061782383,0.04243489,175.56,175.52,0.03767439]
[1748061782985,0.04243489,175.56,175.54,5.6949]
[1748061783887,0.04243489,175.56,175.55,5.6948]
[1748061788596,0.04243489,175.56,175.54,5.695]
[1748061790101,0.04243489,175.56,175.52,0.03767439]
[1748061791598,5.6953,175.54,175.52,0.03767439]
[1748061793000,5.6954,175.53,175.52,0.03767439]
[1748061794403,114.16,175.55,175.52,0.03767439]
[1748061795495,5.6954,175.53,175.52,0.03767439]
[1748061798299,114.16,175.55,175.52,0.03767439]
[1748061798901,119.8549,175.55,175.52,0.03767439]
[1748061799204,114.16,175.55,175.52,0.03767439]
[1748061799602,5.6951,175.54,175.52,0.03767439]
[1748061801103,5.6954,175.53,175.52,0.03767439]
[1748061801300,118.76012881,175.55,175.42,114.18]
[1748061801507,4.60012881,175.5,175.42,114.18]
[1748061802106,5.6968,175.49,175.45,5.6978]
[1748061802309,5.6968,175.49,175.45,5.73763018]
[1748061802310,5.73854668,175.49,175.45,5.73763018]
[1748061802498,5.73854668,175.49,175.45,0.03983018]
[1748061802811,0.04174668,175.49,175.45,0.03983018]
[1748061803407,0.04174668,175.49,175.48,5.697]
[1748061804108,0.04174668,175.49,175.47,5.6973]
[1748061806212,0.04174668,175.49,175.48,5.697]
[1748061819217,4.668e-05,175.49,175.48,5.697]
[1748061821920,492.22,175.69,175.57,5.694]
[1748061822120,113.86,175.62,175.57,5.694]
[1748061822721,5.6929,175.61,175.57,5.694]
[1748061823025,5.73676102,175.61,175.57,5.73225238]
[1748061823226,5.6932,175.6,175.57,5.73225238]
[1748061823426,4.64398983,175.61,175.57,0.03825238]
[1748061823728,5.6937,175.59,175.57,0.03825238]
[1748061824424,118.44012881,175.58,175.48,1.8683]
[1748061825015,5.6958,175.52,175.49,5.6966]
[1748061825518,0.04262401,175.52,175.49,5.74023511]
[1748061825720,0.04262401,175.52,175.49,0.04363511]
[1748061826831,0.04262401,175.52,175.51,5.6961]
[1748061827528,0.04262401,175.52,175.5,5.6963]
[1748061828631,0.04262401,175.52,175.51,5.6961]
[1748061831027,0.04262401,175.52,175.5,5.6963]
[1748061832733,0.04262401,175.52,175.51,5.6961]
[1748061833818,113.88262401,175.52,175.49,0.04363511]
[1748061834026,4.60012881,175.5,175.4,115.7184]
[1748061834331,4.60012881,175.5,175.44,5.698]
[1748061834630,113.84,175.52,175.4,115.7184]
[1748061834832,113.84,175.52,175.47,5.6971]
[1748061835033,0.03856782,175.51,175.48,0.04210864]
[1748061836732,0.03856782,175.51,175.48,5.73900864]
[1748061838129,0.03856782,175.51,175.49,5.6965]
[1748061840335,0.03856782,175.51,175.5,5.6964]
[1748061843326,0.03856782,175.51,175.49,5.6966]
[1748061844237,0.03856782,175.51,175.5,5.6964]
[1748061844439,5.6924,175.63,175.5,113.86]
[1748061844632,113.86,175.64,175.51,7.0842797]
[1748061845139,19.68855048,175.62,175.51,7.0842797]
[1748061845338,0.04088287,175.58,175.55,0.03983019]
[1748061846639,0.04088287,175.58,175.57,5.6941]
[1748061848639,0.04088287,175.58,175.56,5.6944]
[1748061848840,0.04088287,175.58,175.55,0.03983019]
[1748061849342,0.04088287,175.58,175.55,5.73443019]
[1748061849742,0.04088287,175.58,175.55,0.03983019]
[1748061849941,5.73498287,175.58,175.55,5.73453019]
[1748061851445,5.6942,175.57,175.55,0.03983019]
[1748061852841,114.02,175.56,175.35,111.14214692]
[1748061853043,4.5982867,175.51,175.43,114.02]
[1748061853847,0.04314814,175.49,175.45,0.04268137]
[1748061854344,0.04314814,175.49,175.48,5.697]
[1748061858945,5.6945,175.56,175.52,5.6955]
[1748061859947,5.7334928,175.56,175.52,5.7337787]
[1748061860142,5.6948,175.55,175.52,5.7337787]
[1748061861543,5.6948,175.55,175.52,0.0382787]
[1748061864445,5.6948,175.55,175.52,5.7339787]
[1748061865854,0.0389928,175.56,175.52,0.0382787]
[1748061866352,5.6953,175.54,175.52,0.0382787]
[1748061866850,5.7334928,175.56,175.52,0.0382787]
[1748061867049,0.0389928,175.56,175.52,0.0382787]
[1748061867448,0.0389928,175.56,175.53,5.6952]
[1748061868163,5.7333928,175.56,175.53,5.6952]
[1748061868962,5.6948,175.55,175.52,5.7338787]
[1748061870364,5.7334928,175.56,175.53,5.6953]
[1748061871965,5.6948,175.55,175.52,5.7339787]
[1748061874964,5.7334928,175.56,175.53,5.6954]
[1748061876368,5.6948,175.55,175.52,5.7338787]
[1748061880263,5.6948,175.55,175.52,0.0382787]
[1748061880473,0.0389928,175.56,175.52,0.0382787]
[1748061883969,0.0389928,175.56,175.53,5.6952]
[1748061884768,0.0389928,175.56,175.54,5.695]
[1748061885067,0.0389928,175.56,175.52,0.0382787]
[1748061885263,0.0389928,175.56,175.52,5.7337787]
[1748061885461,0.0389928,175.56,175.52,0.0382787]
[1748061886069,5.7335928,175.56,175.53,5.6952]
[1748061887570,5.6949,175.55,175.52,5.7337787]
[1748061887776,0.0389928,175.56,175.52,0.0382787]
[1748061887969,114.1389928,175.56,175.52,0.0382787]
[1748061888476,5.6948,175.55,175.52,0.0382787]
[1748061888969,0.0389928,175.56,175.52,0.0382787]
[1748061890878,0.0389928,175.56,175.55,5.6948]
[1748061900686,0.0389928,175.56,175.54,5.695]
[1748061900882,0.0389928,175.56,175.52,0.0382787]
[1748061901588,5.7335928,175.56,175.53,5.6954]
[1748061902889,5.7335928,175.56,175.52,0.0382787]
[1748061902890,0.0389928,175.56,175.52,0.0382787]
[1748061903893,5.695,175.55,175.52,5.7339787]
[1748061904288,0.0389928,175.56,175.52,0.0382787]
[1748061904586,0.0389928,175.56,175.53,5.6953]
[1748061904989,0.0389928,175.56,175.52,0.0382787]
[1748061905289,0.0389928,175.56,175.53,5.6952]
[1748061905290,5.7334928,175.56,175.53,5.6952]
[1748061907087,0.0389928,175.56,175.54,5.695]
[1748061907391,0.0389928,175.56,175.52,0.0382787]
[1748061907690,0.0389928,175.56,175.53,5.6953]
[1748061907988,5.7334928,175.56,175.52,0.0382787]
[1748061908291,5.7334928,175.56,175.52,5.7337787]
[1748061909092,0.0389928,175.56,175.52,0.0382787]
[1748061909684,5.6948,175.55,175.52,0.0382787]
[1748061909884,119.7948,175.55,175.52,5.7339787]
[1748061914292,119.7948,175.55,175.52,0.0382787]
[1748061914485,114.1,175.55,175.52,0.0382787]
[1748061915296,5.6953,175.54,175.52,0.0382787]
[1748061918091,5.6954,175.53,175.52,0.0382787]
[1748061918400,114.1,175.55,175.52,0.0382787]
[1748061918791,5.6953,175.54,175.52,0.0382787]
[1748061919295,119.7949,175.55,175.52,5.7339787]
[1748061920098,5.6951,175.54,175.52,5.7339787]
[1748061920695,5.6951,175.54,175.52,0.0382787]
[1748061924798,119.7949,175.55,175.52,0.0382787]
[1748061925901,5.6952,175.54,175.52,0.0382787]
[1748061927399,5.6954,175.53,175.52,0.0382787]
[1748061929102,5.6953,175.54,175.52,0.0382787]
[1748061930297,119.7949,175.55,175.52,5.7339787]
[1748061931100,5.6951,175.54,175.52,0.0382787]
[1748061931295,114.1,175.55,175.52,0.0382787]
[1748061931600,5.6953,175.54,175.52,0.0382787]
[1748061932502,5.6954,175.53,175.52,0.0382787]
[1748061933807,5.6952,175.54,175.52,0.0382787]
[1748061935098,0.0389928,175.56,175.52,0.0382787]
[1748061936604,0.0389928,175.56,175.55,5.6948]
[1748061938407,0.0389928,175.56,175.52,0.0382787]
[1748061939207,5.7336928,175.56,175.53,5.6954]
[1748061939501,5.7336928,175.56,175.52,0.0382787]
[1748061939703,5.6951,175.55,175.52,5.7338787]
[1748061939906,5.6951,175.55,175.52,0.0382787]
[1748061940408,5.6952,175.54,175.52,0.0382787]
[1748061941106,5.6948,175.55,175.52,5.7339787]
[1748061943909,113.9189928,175.56,175.52,0.0382787]
[1748061944407,5.6954,175.53,175.52,0.0382787]
[1748061949520,113.88,175.55,175.52,0.0382787]
[1748061950622,5.6954,175.53,175.52,0.0382787]
[1748061956323,5.6951,175.54,175.52,0.0382787]
[1748061956519,113.88,175.55,175.52,0.0382787]
[1748061956823,113.88,175.55,175.52,5.7337787]
[1748061957019,113.88,175.55,175.52,0.0382787]
[1748061957232,118.48127971,175.55,175.52,0.0382787]
[1748061958230,5.6954,175.53,175.52,0.0382787]
[1748061964325,0.0389928,175.56,175.52,0.0382787]
[1748061964730,0.0389928,175.56,175.53,5.6953]
[1748061965026,0.0389928,175.56,175.52,0.0382787]
[1748061965337,5.6954,175.53,175.52,0.0382787]